[Event "Modransky Cup 2025"]
[Site "Modra"]
[Date "2025.02.20"]
[Round "1.22"]
[White "Vernerova, Ema"]
[Black "Grom, Stanislav"]
[Result "0-1"]
[Annotator "NA"]
[ECO "B00"]
[WhiteElo "1428"]
[BlackElo "1846"]
[PlyCount "72"]
[EventDate "2025.02.20"]
[EventCountry "SVK"]
[SourceTitle "playchess.com"]
[Source "ChessBase"]
[SourceQuality "1"]
[TimeControl "5400+30"]

1. e4 {[%emt 0:00:16]} Nc6 {[%emt 0:00:05]} 2. Nf3 {[%emt 0:02:19]} f5 {[%emt 0:00:02]} 3. e5 {[%emt 0:02:43]} d6 {[%emt 0:00:06]} 4. exd6 {[%emt 0:03:09]} cxd6 {[%emt 0:00:10]} 5. Bb5 {[%emt 0:00:28]} Qa5 {[%emt 0:02:58]} 6. Nc3 {[%emt 0:03:15]} a6 {[%emt 0:02:39]} 7. Be2 {[%emt 0:03:42]} e5 {[%emt 0:01:26]} 8. d3 {[%emt 0:02:01]} Nf6 {[%emt 0:01:39]} 9. Bd2 {[%emt 0:00:51]} Be7 {[%emt 0:02:55]} 10. O-O {[%emt 0:01:20]} O-O {[%emt 0:00:32]} 11. Ne4 {[%emt 0:02:38]} Qd8 {[%emt 0:10:25]} 12. Nxf6+ {[%emt 0:02:41]} Bxf6 {[%emt 0:00:25]} 13. Be3 {[%emt 0:01:34]} f4 {[%emt 0:02:46]} 14. Bc1 {[%emt 0:00:12]} b5 {[%emt 0:00:57]} 15. d4 {[%emt 0:00:31]} e4 {[%emt 0:04:48]} 16. Ne1 {[%emt 0:00:22]} Bxd4 {[%emt 0:00:54]} 17. Bxf4 {[%emt 0:00:30]} Rxf4 {[%emt 0:00:45]} 18. c3 {[%emt 0:00:42]} Ba7 {[%emt 0:01:12]} 19. Qd5+ {[%emt 0:00:19]} Kh8 {[%emt 0:06:58]} 20. Qxc6 {[%emt 0:00:55]} Rb8 {[%emt 0:00:56]} 21. Rd1 {[%emt 0:03:20]} Rb6 {[%emt 0:03:40]} 22. Qd5 {[%emt 0:01:00]} Bb7 {[%emt 0:00:32]} 23. Qd2 {[%emt 0:00:47]} Rf8 {[%emt 0:01:57]} 24. f3 {[%emt 0:00:27]} Rc6+ {[%emt 0:02:52]} 25. Kh1 {[%emt 0:00:18]} e3 {[%emt 0:00:47]} 26. Qc2 {[%emt 0:01:45]} d5 {[%emt 0:02:29]} 27. Nd3 {[%emt 0:00:38]} Bb8 {[%emt 0:06:20]} 28. f4 {[%emt 0:03:33]} Rcf6 {[%emt 0:08:25]} 29. Nc5 {[%emt 0:02:01]} Ba8 {[%emt 0:01:36]} 30. Qd3 {[%emt 0:01:34]} Qe7 {[%emt 0:02:07]} 31. Nb3 {[%emt 0:01:41]} Rxf4 {[%emt 0:01:02]} 32. Bf3 {[%emt 0:06:05]} Rh4 {[%emt 0:05:33]} 33. Bxd5 {[%emt 0:01:57]} Rxh2+ {[%emt 0:04:12]} 34. Kg1 {[%emt 0:00:16]} Rh1+ {[%emt 0:00:30]} 35. Kxh1 {[%emt 0:00:29]} Qh4+ {[%emt 0:00:00]} 36. Kg1 {[%emt 0:00:25]} Qh2# {[%emt 0:00:00]} 0-1

[Event "Modransky Cup 2025"]
[Site "Modra"]
[Date "2025.02.20"]
[Round "1.23"]
[White "Ondreicka, Roman"]
[Black "Chlupik Michal"]
[Result "1-0"]
[Annotator "NA"]
[ECO "C00"]
[WhiteElo "1842"]
[BlackElo "1355"]
[PlyCount "98"]
[EventDate "2025.02.20"]
[EventCountry "SVK"]
[SourceTitle "playchess.com"]
[Source "ChessBase"]
[SourceQuality "1"]
[TimeControl "5400+30"]

1. e4 {[%emt 0:00:05]} e6 {[%emt 0:01:31]} 2. d3 {[%emt 0:00:35]} d5 {[%emt 0:00:31]} 3. Nd2 {[%emt 0:00:10]} dxe4 {[%emt 0:02:06]} 4. Nxe4 {[%emt 0:00:21]} Nf6 {[%emt 0:00:15]} 5. Nxf6+ {[%emt 0:01:11]} Qxf6 {[%emt 0:00:08]} 6. Nf3 {[%emt 0:01:14]} Nc6 {[%emt 0:01:51]} 7. g3 {[%emt 0:01:02]} Nd4 {[%emt 0:02:10]} 8. Bg2 {[%emt 0:00:56]} Nxf3+ {[%emt 0:01:08]} 9. Bxf3 {[%emt 0:00:44]} Bc5 {[%emt 0:01:49]} 10. O-O {[%emt 0:00:28]} O-O {[%emt 0:01:33]} 11. c3 {[%emt 0:01:13]} e5 {[%emt 0:01:39]} 12. Be3 {[%emt 0:00:25]} Bxe3 {[%emt 0:03:00]} 13. fxe3 {[%emt 0:00:14]} Qb6 {[%emt 0:01:31]} 14. Qe2 {[%emt 0:00:58]} Bf5 {[%emt 0:02:23]} 15. Rad1 {[%emt 0:04:43]} Rad8 {[%emt 0:02:04]} 16. Kh1 {[%emt 0:02:08]} Qe6 {[%emt 0:05:08]} 17. e4 {[%emt 0:06:09]} Bh3 {[%emt 0:03:47]} 18. Bg2 {[%emt 0:00:32]} Bg4 {[%emt 0:01:44]} 19. Bf3 {[%emt 0:00:11]} Bh3 {[%emt 0:00:13]} 20. Rfe1 {[%emt 0:00:55]} Qxa2 {[%emt 0:03:52]} 21. Ra1 {[%emt 0:00:34]} Qe6 {[%emt 0:00:25]} 22. Rxa7 {[%emt 0:00:27]} Qb6 {[%emt 0:01:37]} 23. Raa1 {[%emt 0:05:50]} f5 {[%emt 0:02:34]} 24. Ra4 {[%emt 0:10:49]} Qb5 {[%emt 0:02:17]} 25. Rc4 {[%emt 0:02:37]} fxe4 {[%emt 0:02:21]} 26. Bxe4 {[%emt 0:00:38]} Qd7 {[%emt 0:07:11]} 27. Rc5 {[%emt 0:09:32]} Qf7 {[%emt 0:14:51]} 28. Rxe5 {[%emt 0:01:32]} Qf2 {[%emt 0:00:13]} 29. Bxh7+ {[%emt 0:06:14]} Kh8 {[%emt 0:02:20]} 30. Qxf2 {[%emt 0:00:42]} Rxf2 {[%emt 0:00:18]} 31. Rh5 {[%emt 0:08:53]} Bd7 {[%emt 0:02:25]} 32. Be4+ {[%emt 0:01:34]} Kg8 {[%emt 0:00:17]} 33. Bd5+ {[%emt 0:00:11]} Rf7 {[%emt 0:02:14]} 34. Bxf7+ {[%emt 0:00:10]} Kxf7 {[%emt 0:00:07]} 35. Rhe5 {[%emt 0:00:09]} Bc6+ {[%emt 0:01:18]} 36. Kg1 {[%emt 0:00:23]} Rxd3 {[%emt 0:00:42]} 37. Re7+ {[%emt 0:00:11]} Kf6 {[%emt 0:00:18]} 38. Rxc7 {[%emt 0:00:07]} Rd2 {[%emt 0:00:17]} 39. Rf1+ {[%emt 0:00:29]} Kg6 {[%emt 0:00:22]} 40. Rxc6+ {[%emt 0:00:20]} bxc6 {[%emt 0:00:18]} 41. Rf2 {[%emt 0:00:01]} Rd5 {[%emt 0:01:27]} 42. Kg2 {[%emt 0:00:10]} Kg5 {[%emt 0:01:47]} 43. h4+ {[%emt 0:00:15]} Kg4 {[%emt 0:00:18]} 44. Rf4+ {[%emt 0:00:07]} Kh5 {[%emt 0:00:19]} 45. Kh3 {[%emt 0:00:03]} Rd2 {[%emt 0:00:35]} 46. Rb4 {[%emt 0:00:23]} Rd1 {[%emt 0:02:23]} 47. Rc4 {[%emt 0:00:09]} Rh1+ {[%emt 0:00:47]} 48. Kg2 {[%emt 0:00:06]} Rd1 {[%emt 0:00:09]} 49. Rc5+ {[%emt 0:00:12]} Kg4 {[%emt 0:00:10]} 1-0

[Event "Modransky Cup 2025"]
[Site "Modra"]
[Date "2025.02.20"]
[Round "1.24"]
[White "Sara, J.S."]
[Black "Pisarcik, Richard"]
[Result "0-1"]
[Annotator "NA"]
[ECO "C47"]
[WhiteElo "1774"]
[BlackElo "1837"]
[PlyCount "50"]
[EventDate "2025.02.20"]
[EventCountry "SVK"]
[SourceTitle "playchess.com"]
[Source "ChessBase"]
[SourceQuality "1"]
[TimeControl "5400+30"]

1. e4 {[%emt 0:00:10]} e5 {[%emt 0:00:21]} 2. Nf3 {[%emt 0:00:30]} Nc6 {[%emt 0:00:21]} 3. Nc3 {[%emt 0:00:09]} Nf6 {[%emt 0:00:10]} 4. Nxe5 {[%emt 0:00:51]} Nxe5 {[%emt 0:01:50]} 5. d4 {[%emt 0:00:10]} Ng6 {[%emt 0:00:18]} 6. Bc4 {[%emt 0:00:52]} Bb4 {[%emt 0:08:16]} 7. Bd2 {[%emt 0:03:24]} Bxc3 {[%emt 0:03:48]} 8. Bxc3 {[%emt 0:01:38]} d5 {[%emt 0:00:28]} 9. Bd3 {[%emt 0:06:07]} dxe4 {[%emt 0:02:52]} 10. Qe2 {[%emt 0:01:39]} O-O {[%emt 0:00:19]} 11. Bxe4 {[%emt 0:03:06]} Nxe4 {[%emt 0:00:55]} 12. O-O {[%emt 0:00:20]} Nxc3 {[%emt 0:01:06]} 13. bxc3 {[%emt 0:01:01]} Re8 {[%emt 0:03:51]} 14. Qc4 {[%emt 0:01:14]} Nf4 {[%emt 0:02:10]} 15. Rfe1 {[%emt 0:02:24]} Be6 {[%emt 0:02:20]} 16. Qb5 {[%emt 0:00:57]} h6 {[%emt 0:01:52]} 17. g3 {[%emt 0:02:54]} Nh3+ {[%emt 0:01:34]} 18. Kf1 {[%emt 0:00:51]} Qf6 {[%emt 0:02:55]} 19. Re2 {[%emt 0:02:02]} Qf3 {[%emt 0:00:43]} 20. Ke1 {[%emt 0:00:50]} Qxc3+ {[%emt 0:03:26]} 21. Kd1 {[%emt 0:00:46]} Qxd4+ {[%emt 0:01:06]} 22. Kc1 {[%emt 0:00:37]} Qxa1+ {[%emt 0:00:18]} 23. Kd2 {[%emt 0:00:18]} Rad8+ {[%emt 0:00:59]} 24. Ke3 {[%emt 0:00:12]} Bf5+ {[%emt 0:00:36]} 25. Kf3 {[%emt 0:00:36]} Qh1# {[%emt 0:00:37]} 0-1

[Event "Modransky Cup 2025"]
[Site "Modra"]
[Date "2025.02.21"]
[Round "2.1"]
[White "Kapinaj, Matus"]
[Black "Stevik, Patrik"]
[Result "0-1"]
[Annotator "RC"]
[ECO "C48"]
[WhiteElo "1999"]
[BlackElo "2331"]
[PlyCount "134"]
[EventDate "2025.02.20"]
[EventCountry "SVK"]
[SourceTitle "playchess.com"]
[Source "ChessBase"]
[SourceQuality "1"]
[TimeControl "5400+30"]

1. e4 {[%emt 0:00:05]} e5 {[%emt 0:00:02]} 2. Nf3 {[%emt 0:00:04]} Nc6 {[%emt 0:00:02]} 3. Nc3 {[%emt 0:00:05]} Nf6 {[%emt 0:00:02]} 4. Bb5 {[%emt 0:00:06]} Nd4 {[%emt 0:00:02]} 5. Nxd4 {[%emt 0:00:06]} exd4 {[%emt 0:00:01]} 6. e5 {[%emt 0:00:10]} dxc3 {[%emt 0:00:25]} 7. exf6 {[%emt 0:00:06]} Qxf6 {[%emt 0:01:32]} 8. dxc3 {[%emt 0:00:31]} Bc5 {[%emt 0:00:03]} 9. O-O {[%emt 0:01:01]} O-O {[%emt 0:00:03]} 10. Qh5 {[%emt 0:02:27]} Bb6 {[%emt 0:06:16]} 11. Bd3 {[%emt 0:02:57]} g6 {[%emt 0:02:20]} 12. Bg5 {[%emt 0:07:48]} Qxf2+ {[%emt 0:00:24]} 13. Rxf2 {[%emt 0:00:13]} gxh5 {[%emt 0:00:46]} 14. Re1 {[%emt 0:02:00]} Bxf2+ {[%emt 0:02:11]} 15. Kxf2 {[%emt 0:00:05]} Kg7 {[%emt 0:00:31]} 16. Be7 {[%emt 0:01:31]} Rg8 {[%emt 0:03:30]} 17. Re3 {[%emt 0:02:46]} f6 {[%emt 0:21:56]} 18. Bc4 {[%emt 0:07:24]} d5 {[%emt 0:10:43]} 19. Bxd5 {[%emt 0:01:13]} Bf5 {[%emt 0:00:02]} 20. Bxg8 {[%emt 0:01:08]} Rxg8 {[%emt 0:00:59]} 21. Rf3 {[%emt 0:04:02]} Bg4 {[%emt 0:05:29]} 22. Re3 {[%emt 0:05:06]} Kf7 {[%emt 0:03:06]} 23. Bc5 {[%emt 0:02:14]} Be6 {[%emt 0:00:14]} 24. Rd3 {[%emt 0:05:05]} b6 {[%emt 0:00:44]} 25. Be3 {[%emt 0:00:28]} Bf5 {[%emt 0:02:03]} 26. Rd2 {[%emt 0:02:21]} h4 {[%emt 0:02:04]} 27. Bf4 {[%emt 0:01:58]} c5 {[%emt 0:00:07]} 28. g3 {[%emt 0:00:57]} h3 {[%emt 0:00:30]} 29. a4 {[%emt 0:01:14]} h5 {[%emt 0:00:35]} 30. a5 {[%emt 0:00:32]} h4 {[%emt 0:04:03]} 31. gxh4 {[%emt 0:02:43]} bxa5 {[%emt 0:00:51]} 32. Bg3 {[%emt 0:01:20]} Re8 {[%emt 0:02:52]} 33. Re2 {[%emt 0:02:57]} Rd8 {[%emt 0:00:31]} 34. Bc7 {[%emt 0:01:22]} Rd1 {[%emt 0:02:40]} 35. Re1 {[%emt 0:00:58]} Rd2+ {[%emt 0:01:17]} 36. Re2 {[%emt 0:00:06]} Rd7 {[%emt 0:00:25]} 37. Bf4 {[%emt 0:01:33]} Rb7 {[%emt 0:01:19]} 38. Bd6 {[%emt 0:03:53]} Bg4 {[%emt 0:03:30]} 39. Rd2 {[%emt 0:01:20]} Rxb2 {[%emt 0:00:20]} 40. Bxc5 {[%emt 0:00:08]} a4 {[%emt 0:00:14]} 41. Kg3 {[%emt 0:00:23]} Be6 {[%emt 0:00:39]} 42. Kf4 {[%emt 0:02:27]} Rb5 {[%emt 0:02:06]} 43. Ba3 {[%emt 0:01:50]} Rf5+ {[%emt 0:02:02]} 44. Ke3 {[%emt 0:01:52]} Re5+ {[%emt 0:04:49]} 45. Kd4 {[%emt 0:09:22]} Kg6 {[%emt 0:03:15]} 46. c4 {[%emt 0:00:30]} Re1 {[%emt 0:00:30]} 47. Kc3 {[%emt 0:00:30]} f5 {[%emt 0:00:30]} 48. Kb4 {[%emt 0:00:30]} Re4 {[%emt 0:00:30]} 49. Kxa4 {[%emt 0:00:30]} Rxc4+ {[%emt 0:00:30]} 50. Kb5 {[%emt 0:00:30]} Rxh4 {[%emt 0:00:30]} 51. Rd6 {[%emt 0:00:30]} a6+ {[%emt 0:00:30]} 52. Ka5 {[%emt 0:00:30]} Re4 {[%emt 0:03:53]} 53. Bc5 {[%emt 0:05:45]} Re2 {[%emt 0:02:31]} 54. Rxa6 {[%emt 0:02:49]} f4 {[%emt 0:00:22]} 55. Bd6 {[%emt 0:02:57]} f3 {[%emt 0:04:09]} 56. Bg3 {[%emt 0:00:11]} Kf5 {[%emt 0:00:02]} 57. Ra8 {[%emt 0:00:28]} Rxc2 {[%emt 0:03:02]} 58. Rf8+ {[%emt 0:00:51]} Ke4 {[%emt 0:00:31]} 59. Rf4+ {[%emt 0:00:14]} Ke3 {[%emt 0:00:00]} 60. Rf6 {[%emt 0:01:07]} Bd5 {[%emt 0:01:55]} 61. Rh6 {[%emt 0:01:53]} Rxh2 {[%emt 0:01:15]} 62. Bxh2 {[%emt 0:03:09]} f2 {[%emt 0:00:02]} 63. Rf6 {[%emt 0:01:12]} Bf3 {[%emt 0:00:04]} 64. Re6+ {[%emt 0:00:31]} Kd3 {[%emt 0:00:12]} 65. Rd6+ {[%emt 0:01:25]} Ke4 {[%emt 0:00:06]} 66. Re6+ {[%emt 0:00:27]} Kf5 {[%emt 0:00:32]} 67. Re5+ {[%emt 0:00:59]} Kf6 {[%emt 0:00:02]} 0-1

[Event "Modransky Cup 2025"]
[Site "Modra"]
[Date "2025.02.21"]
[Round "2.2"]
[White "Shirinyan, Daniel"]
[Black "Skaraiev, Mykhailo"]
[Result "1-0"]
[Annotator "RC"]
[ECO "E49"]
[WhiteElo "2231"]
[BlackElo "1980"]
[PlyCount "94"]
[EventDate "2025.02.20"]
[EventCountry "SVK"]
[SourceTitle "playchess.com"]
[Source "ChessBase"]
[SourceQuality "1"]
[TimeControl "5400+30"]

1. d4 {[%emt 0:00:23]} Nf6 {[%emt 0:00:06]} 2. c4 {[%emt 0:00:04]} e6 {[%emt 0:00:12]} 3. Nc3 {[%emt 0:00:15]} Bb4 {[%emt 0:00:12]} 4. f3 {[%emt 0:00:05]} d5 {[%emt 0:01:45]} 5. a3 {[%emt 0:00:11]} Bxc3+ {[%emt 0:00:35]} 6. bxc3 {[%emt 0:00:06]} c5 {[%emt 0:00:45]} 7. cxd5 {[%emt 0:00:05]} exd5 {[%emt 0:00:47]} 8. e3 {[%emt 0:00:05]} O-O {[%emt 0:01:14]} 9. Bd3 {[%emt 0:00:01]} c4 {[%emt 0:01:34]} 10. Bc2 {[%emt 0:01:01]} Re8 {[%emt 0:01:16]} 11. Ne2 {[%emt 0:01:20]} Nc6 {[%emt 0:01:56]} 12. O-O {[%emt 0:00:05]} Bd7 {[%emt 0:03:58]} 13. Ng3 {[%emt 0:08:18]} h5 {[%emt 0:04:58]} 14. e4 {[%emt 0:25:56]} h4 {[%emt 0:01:29]} 15. Nf5 {[%emt 0:03:20]} Bxf5 {[%emt 0:03:27]} 16. exf5 {[%emt 0:00:02]} Nh7 {[%emt 0:11:45]} 17. Bf4 {[%emt 0:01:53]} h3 {[%emt 0:04:36]} 18. g4 {[%emt 0:00:25]} Qa5 {[%emt 0:03:24]} 19. Qd2 {[%emt 0:01:21]} Re7 {[%emt 0:01:47]} 20. a4 {[%emt 0:05:12]} Rae8 {[%emt 0:00:50]} 21. Rae1 {[%emt 0:00:54]} Rxe1 {[%emt 0:07:55]} 22. Rxe1 {[%emt 0:00:02]} Rxe1+ {[%emt 0:00:48]} 23. Qxe1 {[%emt 0:00:01]} Nxd4 {[%emt 0:01:50]} 24. Qe8+ {[%emt 0:00:08]} Nf8 {[%emt 0:00:26]} 25. cxd4 {[%emt 0:00:07]} Qc3 {[%emt 0:01:29]} 26. Qe2 {[%emt 0:04:38]} Qxd4+ {[%emt 0:00:41]} 27. Be3 {[%emt 0:01:16]} Qe5 {[%emt 0:01:00]} 28. Qd2 {[%emt 0:01:42]} Qa1+ {[%emt 0:06:02]} 29. Qd1 {[%emt 0:06:04]} Qe5 {[%emt 0:02:54]} 30. Qd4 {[%emt 0:03:44]} Nd7 {[%emt 0:02:46]} 31. Bd1 {[%emt 0:17:22]} b6 {[%emt 0:03:01]} 32. f4 {[%emt 0:07:52]} Qe7 {[%emt 0:01:11]} 33. Bf3 {[%emt 0:02:30]} Qb4 {[%emt 0:01:06]} 34. Kf2 {[%emt 0:02:20]} Nc5 {[%emt 0:02:12]} 35. Bxd5 {[%emt 0:01:23]} Nd3+ {[%emt 0:10:02]} 36. Kg3 {[%emt 0:03:49]} Qe1+ {[%emt 0:04:19]} 37. Kxh3 {[%emt 0:00:08]} Qf1+ {[%emt 0:01:03]} 38. Kg3 {[%emt 0:04:35]} Qe1+ {[%emt 0:03:56]} 39. Bf2 {[%emt 0:00:12]} Nxf2 {[%emt 0:01:02]} 40. Qxf2 {[%emt 0:00:01]} Qc3+ {[%emt 0:00:56]} 41. Qf3 {[%emt 0:01:09]} Qe1+ {[%emt 0:00:35]} 42. Kh3 {[%emt 0:00:29]} c3 {[%emt 0:00:38]} 43. Qd3 {[%emt 0:00:50]} a6 {[%emt 0:01:16]} 44. Be4 {[%emt 0:00:22]} b5 {[%emt 0:01:10]} 45. axb5 {[%emt 0:00:03]} axb5 {[%emt 0:00:13]} 46. Qd8+ {[%emt 0:00:21]} Kh7 {[%emt 0:00:22]} 47. Qh4+ {[%emt 0:00:01]} Qxh4+ {[%emt 0:00:28]} 1-0

[Event "Modransky Cup 2025"]
[Site "Modra"]
[Date "2025.02.21"]
[Round "2.3"]
[White "Galla, Richard"]
[Black "Banas, Kamil"]
[Result "1/2-1/2"]
[Annotator "RC"]
[ECO "E04"]
[WhiteElo "1960"]
[BlackElo "2178"]
[PlyCount "36"]
[EventDate "2025.02.20"]
[EventCountry "SVK"]
[SourceTitle "playchess.com"]
[Source "ChessBase"]
[SourceQuality "1"]
[TimeControl "5400+30"]

1. d4 {[%emt 0:00:04]} d5 {[%emt 0:05:29]} 2. c4 {[%emt 0:00:22]} e6 {[%emt 0:00:04]} 3. Nf3 {[%emt 0:00:06]} Nf6 {[%emt 0:00:05]} 4. g3 {[%emt 0:00:05]} dxc4 {[%emt 0:00:05]} 5. Bg2 {[%emt 0:00:44]} Nc6 {[%emt 0:00:06]} 6. O-O {[%emt 0:01:05]} Rb8 {[%emt 0:00:07]} 7. a4 {[%emt 0:05:27]} a6 {[%emt 0:02:41]} 8. Na3 {[%emt 0:04:58]} b5 {[%emt 0:02:04]} 9. axb5 {[%emt 0:00:15]} axb5 {[%emt 0:00:31]} 10. Bg5 {[%emt 0:03:02]} Be7 {[%emt 0:08:37]} 11. Nxb5 {[%emt 0:06:15]} Rxb5 {[%emt 0:01:00]} 12. Qa4 {[%emt 0:00:24]} Rb4 {[%emt 0:07:46]} 13. Qxc6+ {[%emt 0:00:15]} Bd7 {[%emt 0:00:31]} 14. Qa6 {[%emt 0:01:55]} O-O {[%emt 0:00:00]} 15. Bd2 {[%emt 0:10:20]} Rxb2 {[%emt 0:06:46]} 16. Qxc4 {[%emt 0:00:42]} Ne4 {[%emt 0:00:37]} 17. Qc1 {[%emt 0:04:07]} Nxd2 {[%emt 0:01:35]} 18. Nxd2 {[%emt 0:00:12]} Rb8 {[%emt 0:00:38]} 1/2-1/2

[Event "Modransky Cup 2025"]
[Site "Modra"]
[Date "2025.02.21"]
[Round "2.4"]
[White "Oruzinsky, Juraj"]
[Black "Smetana, Peter"]
[Result "1/2-1/2"]
[Annotator "RC"]
[ECO "B22"]
[WhiteElo "2171"]
[BlackElo "1947"]
[PlyCount "172"]
[EventDate "2025.02.20"]
[EventCountry "SVK"]
[SourceTitle "playchess.com"]
[Source "ChessBase"]
[SourceQuality "1"]
[TimeControl "5400+30"]

1. e4 {[%emt 0:00:05]} c5 {[%emt 0:00:13]} 2. c3 {[%emt 0:00:08]} d5 {[%emt 0:00:15]} 3. exd5 {[%emt 0:00:05]} Qxd5 {[%emt 0:00:05]} 4. d4 {[%emt 0:00:03]} Nf6 {[%emt 0:00:11]} 5. Nf3 {[%emt 0:00:05]} Bg4 {[%emt 0:00:19]} 6. Nbd2 {[%emt 0:00:31]} e6 {[%emt 0:01:04]} 7. Bc4 {[%emt 0:00:49]} Qd7 {[%emt 0:00:33]} 8. Qb3 {[%emt 0:02:18]} Bxf3 {[%emt 0:18:12]} 9. Nxf3 {[%emt 0:00:24]} Qc8 {[%emt 0:14:38]} 10. O-O {[%emt 0:01:42]} Be7 {[%emt 0:01:15]} 11. Re1 {[%emt 0:04:28]} Nc6 {[%emt 0:34:53]} 12. dxc5 {[%emt 0:20:31]} Nd7 {[%emt 0:04:05]} 13. Qc2 {[%emt 0:01:53]} Nxc5 {[%emt 0:01:45]} 14. Bg5 {[%emt 0:01:19]} h6 {[%emt 0:05:48]} 15. Bxe7 {[%emt 0:00:35]} Nxe7 {[%emt 0:00:21]} 16. Bb5+ {[%emt 0:04:56]} Nc6 {[%emt 0:01:57]} 17. Rad1 {[%emt 0:15:20]} O-O {[%emt 0:01:29]} 18. Bxc6 {[%emt 0:00:26]} Qxc6 {[%emt 0:00:56]} 19. Ne5 {[%emt 0:00:44]} Qc8 {[%emt 0:03:09]} 20. b4 {[%emt 0:02:59]} Na6 {[%emt 0:00:14]} 21. Rd4 {[%emt 0:01:29]} Nc7 {[%emt 0:02:49]} 22. c4 {[%emt 0:09:45]} Nd5 {[%emt 0:01:07]} 23. Qd2 {[%emt 0:00:06]} Nf6 {[%emt 0:00:14]} 24. Ng4 {[%emt 0:00:31]} Nxg4 {[%emt 0:01:01]} 25. Rxg4 {[%emt 0:00:04]} e5 {[%emt 0:02:27]} 26. h3 {[%emt 0:02:58]} Qe6 {[%emt 0:00:19]} 27. Qc3 {[%emt 0:03:41]} Rfe8 {[%emt 0:00:39]} 28. Rge4 {[%emt 0:00:21]} Qd7 {[%emt 0:02:06]} 29. Rxe5 {[%emt 0:00:28]} Rxe5 {[%emt 0:00:07]} 30. Rxe5 {[%emt 0:00:17]} Qa4 {[%emt 0:00:31]} 31. Qb3 {[%emt 0:01:07]} Qd7 {[%emt 0:00:17]} 32. Rd5 {[%emt 0:00:39]} Qe6 {[%emt 0:00:14]} 33. Qe3 {[%emt 0:07:01]} Qa6 {[%emt 0:00:53]} 34. Qf4 {[%emt 0:06:29]} Rc8 {[%emt 0:01:22]} 35. Rd7 {[%emt 0:00:32]} Qe6 {[%emt 0:01:08]} 36. Rxb7 {[%emt 0:04:35]} Rxc4 {[%emt 0:00:35]} 37. Qd2 {[%emt 0:03:15]} Re4 {[%emt 0:00:41]} 38. Qd8+ {[%emt 0:02:29]} Kh7 {[%emt 0:00:06]} 39. Qd3 {[%emt 0:00:08]} g6 {[%emt 0:01:18]} 40. Qf3 {[%emt 0:01:26]} Kg7 {[%emt 0:00:32]} 41. Rxa7 {[%emt 0:00:18]} Re1+ {[%emt 0:00:20]} 42. Kh2 {[%emt 0:00:08]} Qd6+ {[%emt 0:00:11]} 43. g3 {[%emt 0:00:29]} Qe6 {[%emt 0:00:11]} 44. a4 {[%emt 0:00:50]} Re5 {[%emt 0:00:40]} 45. b5 {[%emt 0:02:19]} Rf5 {[%emt 0:00:15]} 46. Qe3 {[%emt 0:00:22]} Qa2 {[%emt 0:00:10]} 47. Kg1 {[%emt 0:00:39]} Qa1+ {[%emt 0:00:34]} 48. Kg2 {[%emt 0:00:07]} Qd1 {[%emt 0:00:43]} 49. Re7 {[%emt 0:02:17]} Qxa4 {[%emt 0:00:19]} 50. b6 {[%emt 0:00:13]} Qc6+ {[%emt 0:00:22]} 51. Kh2 {[%emt 0:00:12]} Rb5 {[%emt 0:00:28]} 52. Qd4+ {[%emt 0:00:30]} Qf6 {[%emt 0:00:20]} 53. Qxf6+ {[%emt 0:00:26]} Kxf6 {[%emt 0:00:06]} 54. Rb7 {[%emt 0:00:06]} Ke6 {[%emt 0:00:57]} 55. Rb8 {[%emt 0:00:15]} Kd7 {[%emt 0:00:15]} 56. b7 {[%emt 0:00:40]} Ke7 {[%emt 0:00:05]} 57. Kg2 {[%emt 0:00:15]} h5 {[%emt 0:00:17]} 58. Kf3 {[%emt 0:00:28]} Rb3+ {[%emt 0:00:12]} 59. Ke4 {[%emt 0:00:14]} Rb4+ {[%emt 0:00:14]} 60. Kd5 {[%emt 0:00:05]} Rb1 {[%emt 0:00:03]} 61. g4 {[%emt 0:01:58]} hxg4 {[%emt 0:00:12]} 62. hxg4 {[%emt 0:00:02]} g5 {[%emt 0:00:43]} 63. f4 {[%emt 0:00:43]} Kf6 {[%emt 0:00:16]} 64. fxg5+ {[%emt 0:00:12]} Kg7 {[%emt 0:00:26]} 65. g6 {[%emt 0:01:06]} fxg6 {[%emt 0:00:06]} 66. Ke4 {[%emt 0:00:32]} Re1+ {[%emt 0:00:12]} 67. Kf4 {[%emt 0:00:16]} Rb1 {[%emt 0:00:08]} 68. Rc8 {[%emt 0:00:39]} Rxb7 {[%emt 0:00:06]} 69. Rc5 {[%emt 0:00:03]} Kf6 {[%emt 0:00:14]} 70. Rc6+ {[%emt 0:00:21]} Kf7 {[%emt 0:00:14]} 71. Kg5 {[%emt 0:00:17]} Kg7 {[%emt 0:01:11]} 72. Rxg6+ {[%emt 0:00:07]} Kh7 {[%emt 0:00:03]} 73. Rd6 {[%emt 0:00:31]} Kg7 {[%emt 0:00:11]} 74. Rd5 {[%emt 0:00:13]} Rb8 {[%emt 0:00:37]} 75. Rd7+ {[%emt 0:00:09]} Kg8 {[%emt 0:00:04]} 76. Kh6 {[%emt 0:00:36]} Rb6+ {[%emt 0:00:03]} 77. Kh5 {[%emt 0:00:03]} Rb8 {[%emt 0:00:04]} 78. g5 {[%emt 0:00:09]} Ra8 {[%emt 0:00:03]} 79. Re7 {[%emt 0:01:29]} Rb8 {[%emt 0:00:08]} 80. Ra7 {[%emt 0:01:20]} Rb6 {[%emt 0:00:10]} 81. Ra8+ {[%emt 0:00:31]} Kg7 {[%emt 0:00:05]} 82. Ra7+ {[%emt 0:00:03]} Kg8 {[%emt 0:00:04]} 83. Ra8+ {[%emt 0:00:18]} Kg7 {[%emt 0:00:05]} 84. Rc8 {[%emt 0:00:08]} Ra6 {[%emt 0:00:06]} 85. Rc7+ {[%emt 0:00:22]} Kg8 {[%emt 0:00:04]} 86. g6 {[%emt 0:00:03]} Ra1 {[%emt 0:00:31]} 1/2-1/2

[Event "Modransky Cup 2025"]
[Site "Modra"]
[Date "2025.02.21"]
[Round "2.5"]
[White "Petrik, Matus"]
[Black "Hitka, Dominik"]
[Result "1-0"]
[Annotator "NA RC"]
[ECO "A96"]
[WhiteElo "1880"]
[BlackElo "2099"]
[PlyCount "65"]
[EventDate "2025.02.20"]
[EventCountry "SVK"]
[SourceTitle "playchess.com"]
[Source "ChessBase"]
[SourceQuality "1"]
[TimeControl "5400+30"]

1. c4 {[%emt 0:00:06]} f5 {[%emt 0:00:11]} 2. Nf3 {[%emt 0:00:42]} Nf6 {[%emt 0:00:07]} 3. Nc3 {[%emt 0:00:05]} d6 {[%emt 0:00:10]} 4. d4 {[%emt 0:00:11]} e6 {[%emt 0:00:06]} 5. g3 {[%emt 0:00:45]} Be7 {[%emt 0:00:26]} 6. Bg2 {[%emt 0:00:04]} O-O {[%emt 0:00:07]} 7. O-O {[%emt 0:00:06]} Ne4 {[%emt 0:00:04]} 8. Qc2 {[%emt 0:02:48]} Nxc3 {[%emt 0:00:09]} 9. Qxc3 {[%emt 0:00:17]} Bf6 {[%emt 0:00:06]} 10. Qb3 {[%emt 0:06:24]} Kh8 {[%emt 0:05:57]} 11. Rd1 {[%emt 0:05:12]} Qe7 {[%emt 0:00:13]} 12. Bd2 {[%emt 0:00:21]} e5 {[%emt 0:00:08]} 13. dxe5 {[%emt 0:10:02]} dxe5 {[%emt 0:00:57]} 14. Bc3 {[%emt 0:01:42]} Nc6 {[%emt 0:01:00]} 15. Rac1 {[%emt 0:10:18]} f4 {[%emt 0:05:50]} 16. Nd2 {[%emt 0:27:45]} Bg5 {[%emt 0:29:00]} 17. Be4 {[%emt 0:07:15]} Qf6 {[%emt 0:05:55]} 18. Rf1 {[%emt 0:02:15]} Bh3 {[%emt 0:06:47]} 19. Bg2 {[%emt 0:00:44]} Bxg2 {[%emt 0:01:17]} 20. Kxg2 {[%emt 0:00:05]} Qh6 {[%emt 0:02:14]} 21. Rcd1 {[%emt 0:01:59]} b6 {[%emt 0:04:27]} 22. Ne4 {[%emt 0:01:03]} Rad8 {[%emt 0:02:11]} 23. Nxg5 {[%emt 0:00:56]} Qxg5 {[%emt 0:00:12]} 24. Qb5 {[%emt 0:00:39]} Qf6 {[%emt 0:08:08]} 25. gxf4 {[%emt 0:05:03]} Qg6+ {[%emt 0:00:26]} 26. Kh1 {[%emt 0:00:16]} Qe4+ {[%emt 0:03:55]} 27. f3 {[%emt 0:00:54]} Qxe2 {[%emt 0:00:31]} 28. Rde1 {[%emt 0:00:02]} Nd4 {[%emt 0:05:22]} 29. Rxe2 {[%emt 0:04:14]} Nxb5 {[%emt 0:00:21]} 30. cxb5 {[%emt 0:00:05]} Rxf4 {[%emt 0:00:27]} 31. Bxe5 {[%emt 0:00:16]} Rc4 {[%emt 0:00:25]} 32. Rg1 {[%emt 0:00:27]} Rc5 {[%emt 0:01:30]} 33. Bxg7+ {[%emt 0:00:23]} 1-0